Cogmind - Beta 13 @@@ ROGUE MODE // 2024.04.16 @ 18:07:51 Player: DeathByZer0 Result: Destroyed by X-57 Shotgunner with High-powered Shotgun Performance ------------- Evolutions (2) 1000 Regions Visited (4) 800 Robots Destroyed (82) 410 Value Destroyed (2656) 2656 Prototype IDs (3) 60 Alien Tech Used (0) 0 Bonus (311) 311 TOTAL SCORE: 5237 Bonus ------- High Alert Combat Kills 117 Follower Combat Kills 334 Friendly Fire -140 Cogmind --------- Core Integrity 0/550 Matter 278/300 Energy 70/125 System Corruption 3% Temperature Cool (0) Movement Rolling (80) Location -8/Materials Parts ------- > --- POWER (2) -------- Light Ion Engine > --- PROPULSION (3) --- Wheel > --- UTILITY (3) ------ Improved Signal Interpreter > --- WEAPON (3) ------- Beam Rifle > --- INVENTORY (5) ---- Large Matter Pod (150) Machine Analyzer Trap Extractor (0/4) Peak State ------------ > --- POWER ------------ Deuterium Engine Nuclear Core > --- PROPULSION ------- Carbon-fiber Leg Carbon-fiber Leg Carbon-fiber Leg > --- UTILITY ---------- Cooling System Improved Signal Interpreter Hacking Suite > --- WEAPON ----------- Heavy EM Shotgun Improved Medium Laser Gauss Rifle > --- INVENTORY -------- High-capacity Battery Large Matter Pod Machine Analyzer Trap Extractor Field Laser [Rating: 35] Favorites ----------- Power Ion Engine Engine Ion Engine Power Core Nuclear Core Propulsion Aluminum Leg Treads Light Treads Leg Aluminum Leg Wheel Compact Wheel Flight Unit Flight Unit Utility Heat Sink Device Heat Sink Storage High-capacity Battery Processor Improved Signal Interpreter Hackware Hacking Suite Protection Improved Light Armor Plating Weapon Beam Rifle Energy Gun Beam Rifle Energy Cannon Advanced Beam Cannon Ballistic Gun Assault Rifle Launcher Grenade Launcher Build | -11 -10 -9 -9 -8 ------- Run | Yrd Mat Mat Sto Mat Slots Evolved 4 | . . 2 . 2 Power 1 | . . . . 1 Propulsion 1 | . . . . 1 Utility 1 | . . 1 . . Weapon 1 | . . 1 . . Parts Attached 130 | 6 24 33 22 45 Power 17 | 2 . 2 5 8 Engine 12 | 2 . 2 5 3 Core 5 | . . . . 5 Reactor . | . . . . . Propulsion 36 | 2 6 8 4 16 Treads 14 | . . 4 4 6 Leg 13 | 2 1 1 . 9 Wheel 6 | . 5 . . 1 Hover . | . . . . . Flight 3 | . . 3 . . Utility 37 | . 12 11 5 9 Device 14 | . 2 2 4 6 Storage 9 | . 6 3 . . Processor 3 | . 1 . . 2 Hackware 1 | . . . . 1 Protection 10 | . 3 6 1 . Artifact . | . . . . . Weapon 40 | 2 6 12 8 12 Energy Gun 17 | . . 4 6 7 Energy Cannon 4 | . . 2 2 . Ballistic Gun 16 | 2 3 6 . 5 Ballistic Cannon . | . . . . . Launcher 3 | . 3 . . . Special Weapon . | . . . . . Impact Weapon . | . . . . . Slashing Weapon . | . . . . . Piercing Weapon . | . . . . . Special Melee Weapon . | . . . . . Unidentified Prototypes 3 | . . . 2 1 Corrupted Parts 1 | . . . . 1 System Corruption 2 | . . . . 2 Parts Lost 43 | . 1 8 7 27 Power 9 | . . 1 2 6 Propulsion 13 | . 1 3 1 8 Utility 7 | . . 2 1 4 Weapon 14 | . . 2 3 9 Highest Loss Streak 12 | . 1 4 3 12 To Critical Strikes 1 | . . . . 1 Average Slot Usage (%) 87 | . 88 79 89 90 Engine 7 | . 14 10 6 2 Core 3 | . . . . 12 Treads 8 | . . 11 20 3 Leg 11 | . 18 1 . 20 Wheel 2 | . 7 2 . . Device 10 | . 3 9 15 11 Storage 8 | . 10 7 11 6 Processor 2 | . . 2 . 5 Protection 3 | . 5 7 4 . Energy Gun 8 | . . 8 14 10 Energy Cannon 5 | . . 4 13 4 Ballistic Gun 9 | . 15 11 1 9 Launcher 2 | . 11 . . . Naked Turns . | . . . . . Heaviest Build 31 | 9 29 25 26 31 Greatest Support 60 | 20 26 43 46 60 Greatest Overweight (x) 6 | . 1 6 1 6 Average Overweight (x) . | . . . . . Largest Inventory Capacity 15 | 5 15 10 5 5 Average Capacity 5 | 5 8 5 5 5 Most Carried 10 | 3 10 5 5 5 Average Carried 4 | . 7 3 3 3 Final Capacity 5 | 5 5 5 5 5 Final Carried 5 | 2 5 3 5 3 Class Distribution -------------------- 38% | Mutant 22% | Scavenger-Gunner 13% | Scavenger-Tank 8% | Gunner 5% | Scavenger-Mutant 5% | Commander-Gunner 4% | Tank Dominant Class ---------------- Mutant | -10/Materials Scavenger-Tank | -9/Materials Scavenger-Tank | -9/Storage Scavenger-Gunner | -8/Materials Resources | -11 -10 -9 -9 -8 ----------- Run | Yrd Mat Mat Sto Mat Matter Collected 2179 | 283 256 538 489 613 Remotely . | . . . . . Salvage Created 3162 | 32 201 654 1071 1204 Parts 179 | 1 15 35 65 63 Haulers Intercepted 1 | . . . 1 . Recyclers Shooed 4 | . . 1 2 1 Parts Field Recycled . | . . . . . Retrieved Matter . | . . . . . Parts Self-Destructed . | . . . . . Prevented . | . . . . . Kills | -11 -10 -9 -9 -8 ------- Run | Yrd Mat Mat Sto Mat Combat Hostiles Destroyed 63 | 1 6 15 17 24 Melee 2 | . . . . 2 Guns 38 | 1 . 13 6 18 Cannons 8 | . . 1 5 2 AOE 12 | . 6 1 4 1 Classes Destroyed 12 | 1 5 3 2 1 Worker 4 | . 1 1 1 1 Builder 2 | . 1 . 1 . Hauler 1 | . . . 1 . Recycler 2 | . . . 2 . Mechanic 2 | . 1 . 1 . Operator 1 | . 1 . . . Watcher 6 | . 1 1 2 2 Swarmer 7 | . . 4 . 3 Grunt 41 | 1 6 6 13 15 Brawler 2 | . . 2 . . Sentry 13 | . . 3 5 5 Hunter 1 | . . . . 1 Best Kill Streak 6 | 1 4 4 4 6 Combat Bots Only 6 | 1 2 4 3 6 Max Kills in Single Turn 2 | 1 1 2 2 2 Gunslinging 1 | . . 1 . 1 Exploded 2 | . 1 1 2 1 Melee 1 | . . . . 1 Uniques/NPCs Destroyed . | . . . . . Combat | -11 -10 -9 -9 -8 -------- Run | Yrd Mat Mat Sto Mat Hostile Shots Fired 573 | 8 21 106 89 349 Missed 179 | . 9 25 30 115 Damage Taken 6123 | 92 262 1115 1032 3622 Core 870 | . 17 150 144 559 Absorbed by Shields . | . . . . . Redirected to Shielding 3 | . 3 . . . Regen/Repaired (Parts) 88 | . 34 . 54 . Core Remaining (%) 73 | 100 93 . 26 . Volleys Fired 196 | 6 15 46 52 77 Largest 3 | 2 2 3 3 3 Hottest 180 | 40 50 135 180 180 Shots Fired 443 | 12 30 79 132 190 Gun 353 | 12 15 75 81 170 Cannon 75 | . . 4 51 20 Launcher 15 | . 15 . . . Special . | . . . . . Kinetic 161 | 12 15 42 18 74 Thermal 189 | . . 23 70 96 Explosive 15 | . 15 . . . Electromagnetic 78 | . . 14 44 20 Robot Hit Streak 13 | 5 11 10 7 13 Robot Miss Streak 4 | 1 3 4 4 4 Penetration Max 1 | . . . . 1 Secondary Targets 7 | . . 2 . 5 Max Gunslinging Chain 1 | . . 1 . 1 Shots Hit Robots 269 | 8 15 51 75 120 Core Hits 137 | 2 23 25 34 53 Critical Kills . | . . . . . Critical Parts Destroyed 2 | . . . 1 1 Critical Strikes 11 | . . 3 5 3 Burn 8 | . . 3 3 2 Destroy 2 | . . . 1 1 Corrupt 1 | . . . 1 . Melee Attacks . | . . . . . Impact . | . . . . . Slashing . | . . . . . Piercing . | . . . . . Sneak Attacks . | . . . . . Combat Hostiles . | . . . . . Follow-up Attacks . | . . . . . Damage Inflicted 6221 | 97 843 939 1755 2587 Guns 3856 | 97 93 787 818 2061 Cannons 1058 | . . 115 635 308 Explosions 1273 | . 747 37 297 192 Melee . | . . . . . Ramming 34 | . 3 . 5 26 Kinetic 1780 | 97 93 402 131 1057 Thermal 2470 | . . 301 922 1247 Explosive 890 | . 747 . 143 . Electromagnetic 1047 | . . 236 554 257 Impact . | . . . . . Slashing . | . . . . . Piercing . | . . . . . Highest Corruption 12 | . . 6 12 3 Average Corruption 6 | . . 5 9 1 Corruption Purged . | . . . . . Corruption Blocked . | . . . . . Effects 84 | . . 19 55 10 Message Errors 17 | . . 4 10 3 Matter Fused 20 | . . 4 13 3 Heat Flow Errors 10 | . . 2 8 . Energy Discharges 7 | . . . 5 2 Parts Rejected 4 | . . 3 1 . Parts Fused 1 | . . . 1 . Data Loss (minor) 11 | . . 3 8 . Data Loss (major) 4 | . . 2 2 . Misfires 5 | . . 1 3 1 Alerts 1 | . . . 1 . Weapon Failures 4 | . . . 3 1 Overload Shots . | . . . . . Overflow Damage 8 | . . . . 8 Projectiles . | . . . . . Explosions 8 | . . . . 8 Melee . | . . . . . Knockbacks . | . . . . . Impact . | . . . . . Kinetic . | . . . . . Secondary . | . . . . . Self-Inflicted Damage 169 | . 97 15 56 1 Shots 6 | . 4 1 1 . Rammed 7 | . 1 . 2 4 Targets Rammed 14 | . 1 . 2 11 Kicked 7 | . . . . 7 Crushed . | . . . . . Highest Temperature 476 | . 42 476 321 453 Average Temperature 105 | . 18 124 105 103 Received Heat Transfer 2118 | 48 111 402 333 1224 Effects 10 | . . 5 2 3 Shutdowns 1 | . . . . 1 Interference 3 | . . 3 . . Short Circuit 1 | . . 1 . . Damage (minor) 5 | . . 1 2 2 Siege Activations . | . . . . . Robots Corrupted 2 | . . . 2 . Combat Hostiles 2 | . . . 2 . Parts Fried 5 | . . 1 4 . Impact Corruptions . | . . . . . Robots Melted 1 | . . . . 1 Combat Hostiles 1 | . . . . 1 Parts Melted 15 | . . 6 5 4 Heat Transferred 5754 | . . 938 2137 2679 Parts Sabotaged . | . . . . . Parts Stolen . | . . . . . Parts Stripped . | . . . . . Power Chain Reactions 5 | . . 1 2 2 Alert | -11 -10 -9 -9 -8 ------- Run | Yrd Mat Mat Sto Mat Peak Influence 563 | 20 184 232 563 528 Initial 202 | . 13 20 33 202 Average 202 | 3 79 152 331 234 Maximum Alert Level 2 | . . 1 2 2 Low Security (%) 57 | 100 100 73 18 44 Level 1 28 | . . 26 37 48 Level 2 13 | . . . 43 7 Level 3 . | . . . . . Level 4 . | . . . . . Level 5 . | . . . . . High Security . | . . . . . Max Security . | . . . . . Squads Dispatched 17 | . 3 . 5 9 Investigation 9 | . 2 . 4 3 Extermination . | . . . . . Reinforcement 8 | . 1 . 1 6 Assault . | . . . . . Garrison . | . . . . . Intercept . | . . . . . Searches Triggered . | . . . . . Construction Impeded 1 | . . . . 1 Haulers Reinforced . | . . . . . Active Scanning Responses . | . . . . . Cargo Convoy Interrupts . | . . . . . Stealth | -11 -10 -9 -9 -8 --------- Run | Yrd Mat Mat Sto Mat Distress Signals 7 | . . 1 2 4 Communications Jammed . | . . . . . Distress Signals . | . . . . . Times Spotted 126 | 1 17 22 33 53 Peak Tracking Total 10 | 1 2 6 4 10 Tactical Retreats 5 | . . 2 . 3 Traps | -11 -10 -9 -9 -8 ------- Run | Yrd Mat Mat Sto Mat Traps Triggered 9 | . . . 8 1 Indirectly . | . . . . . Trap Hack Attempts . | . . . . . Triggered . | . . . . . Disarmed 6 | . . . . 6 Reprogrammed 7 | . 7 . . . Reused . | . . . . . Traps Extracted . | . . . . . Installed . | . . . . . Triggered . | . . . . . Machines | -11 -10 -9 -9 -8 ---------- Run | Yrd Mat Mat Sto Mat Machines Disabled 8 | . 2 . 4 2 Max in Single Turn 2 | . 2 . 1 1 Machines Repaired . | . . . . . Machines Dismantled . | . . . . . Machines Sabotaged . | . . . . . Overloaded Fab Kills . | . . . . . Hacking | -11 -10 -9 -9 -8 --------- Run | Yrd Mat Mat Sto Mat Machines Accessed 31 | . 10 5 11 5 Terminals 24 | . 7 3 10 4 Fabricators . | . . . . . Repair Stations 3 | . 1 . 1 1 Recycling Units 3 | . 2 1 . . Scanalyzers 1 | . . 1 . . Garrison Access . | . . . . . Total Hacks 116 | . 44 19 36 17 Successful 74 | . 35 12 18 9 Failed 42 | . 9 7 18 8 Catastrophic 6 | . 1 . 4 1 Database Lockouts . | . . . . . Manual . | . . . . . Terminals 84 | . 26 10 32 16 Fabricators . | . . . . . Repair Stations 8 | . 3 . 4 1 Recycling Units 18 | . 15 3 . . Scanalyzers 6 | . . 6 . . Garrison Access . | . . . . . Terminal Hacks 48 | . 18 5 16 9 Record 28 | . 9 4 11 4 Robot Analysis 1 | . 1 . . . Open Door 3 | . . . 3 . Alert Level 5 | . 1 1 2 1 Locate Traps 2 | . . . . 2 Disarm Traps 2 | . . . . 2 Reprogram Traps 2 | . 2 . . . Maintenance Status 1 | . 1 . . . Patrol Status 1 | . 1 . . . Recall Investigation 1 | . 1 . . . Hauler Manifests 1 | . 1 . . . Zone Layout 1 | . 1 . . . Fabricator Hacks . | . . . . . Repair Station Hacks 5 | . 3 . 2 . Scan Component 2 | . 1 . 1 . Repair 2 | . 1 . 1 . Refit 1 | . 1 . . . Recycling Unit Hacks 15 | . 14 1 . . Recycle Component 6 | . 6 . . . Process 3 | . 3 . . . Report Inventory 4 | . 3 1 . . Retrieve Matter 2 | . 2 . . . Scanalyzer 6 | . . 6 . . Insert Component 3 | . . 3 . . Analyze 3 | . . 3 . . Garrison Access Hacks . | . . . . . Unauthorized Hacks . | . . . . . Terminals . | . . . . . Fabricators . | . . . . . Repair Stations . | . . . . . Recycling Units . | . . . . . Scanalyzers . | . . . . . Garrison Access . | . . . . . Data Cores Recovered . | . . . . . Used . | . . . . . Hacking Detections 26 | . 8 5 9 4 Full Trace Events 18 | . 5 4 6 3 Feedback Events 2 | . . . 1 1 Corruption 2 | . . . 1 1 Feedback Blocked . | . . . . . Robot Schematics Acquired . | . . . . . Robots Built . | . . . . . Authchips . | . . . . . Time . | . . . . . Total Robot Build Rating . | . . . . . Part Schematics Acquired 2 | . . 2 . . Parts Built . | . . . . . Authchips . | . . . . . Time . | . . . . . Total Part Build Rating . | . . . . . Parts Repaired 2 | . 1 . 1 . Time 62 | . 26 . 36 . Parts Recycled 6 | . 6 . . . Recycled Matter 356 | . 356 . . . Retrieved Matter 356 | . 356 . . . Retrieved Components . | . . . . . Parts Scanalyzed 2 | . . 2 . . Part Schematics Acquired 2 | . . 2 . . Parts Damaged . | . . . . . Bothacking | -11 -10 -9 -9 -8 ------------ Run | Yrd Mat Mat Sto Mat Used RIF Installer . | . . . . . Robots Hacked . | . . . . . Non-combat . | . . . . . Combat . | . . . . . Robot Hacks Applied . | . . . . . Relay Couplers Released . | . . . . . Fabnet Peak Effective % . | . . . . . Robots Rewired . | . . . . . Allies Hacked . | . . . . . Hacks Repelled . | . . . . . Allies | -11 -10 -9 -9 -8 -------- Run | Yrd Mat Mat Sto Mat Total Allies 10 | . . . 10 . Largest Group 10 | . . . 10 . Highest-Rated Group 88 | . . . 88 . Highest-Rated Ally 16 | . . . 16 . Total Orders . | . . . . . Ally Attacks 95 | . . . 95 . Total Damage 890 | . . . 890 . Kills 12 | . . . 12 . Allies Corrupted . | . . . . . Allies Melted . | . . . . . Intel | -11 -10 -9 -9 -8 ------- Run | Yrd Mat Mat Sto Mat Robot Analysis Total 1 | . 1 . . . Derelict Logs Recovered . | . . . . . Drone Launches . | . . . . . Drone Recoveries . | . . . . . Exploration | -11 -10 -9 -9 -8 ------------- Run | Yrd Mat Mat Sto Mat Turns Passed 5494 | 107 1358 943 1417 1669 Spaces Moved 3062 | 75 861 646 664 816 Core 138 | 20 . 105 . 13 Treads 998 | . . 251 664 83 Legs 1334 | 55 559 . . 720 Wheels 365 | . 302 63 . . Hover . | . . . . . Flight 227 | . . 227 . . Fastest Speed 37 | 50 85 37 160 50 Average Speed 130 | 101 116 113 166 131 Slowest Speed 350 | 120 190 350 240 350 Overloaded Moves . | . . . . . Propulsion Burnouts . | . . . . . Robots Hopped . | . . . . . Cave-ins Triggered . | . . . . . Exploration Rate (%) 48 | 5 89 22 79 47 Regions Visited 4 Branch Regions 1 Pre-discovered Areas . | . . . . . Known Exits Taken . | . . . . . Unknown Exits Taken 4 | 1 1 1 1 . Scrap Searched . | . . . . . Spaces Dug . | . . . . . Terrain Destroyed 126 | . 102 3 14 7 Melee . | . . . . . Projectile . | . . . . . AOE 126 | . 102 3 14 7 Terrain Rammed . | . . . . . Walls Destroyed . | . . . . . Machines Disabled . | . . . . . Actions | -11 -10 -9 -9 -8 --------- Run | Yrd Mat Mat Sto Mat Total 4186 | 93 1189 795 863 1246 Wait 606 | . 255 28 85 238 Move 3058 | 74 860 645 663 816 Hop . | . . . . . Pick Up 103 | 7 16 20 22 38 Fast Attach 16 | . 4 8 1 3 Attach 59 | 5 8 15 7 24 Detach 12 | . 6 6 . . Swap 55 | 1 12 10 14 18 Drop 65 | . 12 17 15 21 Fire 196 | 6 15 46 52 77 Melee . | . . . . . Ram 3 | . 1 . . 2 Kick 7 | . . . . 7 Crush 4 | . . . 2 2 Escape Stasis 2 | . . . 2 . Rewire . | . . . . . Trap . | . . . . . Miscellaneous . | . . . . . Route ------- -11/Scrapyard -10/Materials (discovered 4 exits: *Mat x3 / [*Min]) -9/Materials -9/Storage -8/Materials (discovered 1 exit: [*Fac]) History --------- Turn | Location | Event 2 | -11/Scrapyard | Met Revision 17 69 | -11/Scrapyard | Discovered new exit (range 8) 108 | -11/Scrapyard | Entered Materials 317 | -10/Materials | Build established: Mutant 363 | -10/Materials | Discovered new exit (range 16) 641 | -10/Materials | Repaired Assault Rifle 785 | -10/Materials | Discovered new exit (range 16) 1383 | -10/Materials | Discovered new exit (range 16) 1425 | -10/Materials | Discovered new exit (range 16) 1466 | -10/Materials | Entered another Materials area 1466 | -9/Materials | Evolved 2 slots: Utility x1, Weapon x1 1467 | -9/Materials | Discovered new exit (range 8) 1700 | -9/Materials | Lost 3 parts (1n2u) 2067 | -9/Materials | Lost 4 parts (2n2w) 2312 | -9/Materials | Build established: Scavenger-Tank 2409 | -9/Materials | Entered Storage 2599 | -9/Storage | Core integrity fell below 50% 2644 | -9/Storage | Lost 3 parts (1p1n1w) 2731 | -9/Storage | Assisted by bots powering up and referring to "LRC-V3" 2746 | -9/Storage | System corruption reached 10% 2839 | -9/Storage | Repaired Corrupted Lgt. Treads 3066 | -9/Storage | Lost 3 allies 3771 | -9/Storage | Discovered new exit (range 16) 3826 | -9/Storage | Entered Materials 3826 | -8/Materials | Evolved 2 slots: Power x1, Propulsion x1 3988 | -8/Materials | Lost 6 parts (2p2n1u1w) 4071 | -8/Materials | Build established: Scavenger-Gunner 4628 | -8/Materials | Discovered new exit (range 15) 4975 | -8/Materials | Lost 6 parts (1p2n1u2w) 5396 | -8/Materials | Build established: Gunner 5445 | -8/Materials | Core integrity fell below 50% 5492 | -8/Materials | Core integrity fell below 20% 5495 | -8/Materials | Destroyed by X-57 Shotgunner with High-powered Shotgun Last Messages --------------- 05485_ Critical hit (Burn: +37). 05485_ K-01 Serf collects debris. 05486_ R-06 Scavenger collects Structural Scanner. 05487_ R-06 Scavenger collects Carbon-fiber Leg. 05487_ K-01 Serf destroyed. 05487_ Hvy. Assault Rifle destroyed. 05489_ Acquired Lgt. Ion Engine. 05489_ Cooling System destroyed. 05490_ Acquired 9 matter. 05491_ U-05 Engineer builds a Door. 05491_ R-06 Scavenger collects Aluminum Leg. 05493_ System corrupted: Matter fused (-7). 05493_ Acquired Wheel. 05494_ Slug penetrates Wall. 05494_ Hacking Suite destroyed. 05494_ Critical hit (Blast). 05495_ K-01 Serf collects debris. [Achievement: First Step to Greatness] [Achievement: 5k Club] Map ----- +----------------------------------------------------+ | #??????????????????????????????? ????????????????? | | #????????????????????????????????????????????????? | | #????????????????????????????????????????????????? | | #???????????????????????????? ? ????????????????? | | #????????????????????????????????????????????????? | | #?????????????????????????????? ???????????????? | | #?????????????????????????????? ]?? ?????????????? | | #?????????????????????????????? ]????????????????? | | #?????????????????????????????? ?????????????#??? | | #????????????????????????????###+###???????? ##?? | | ?????????????????#########+### ####### #?? | | ???????????????? %% #?? | | ???????????????? % #?? | | ???????????????? #?? | | ???????????????????????###+### = #######???????? | | ?????????????????????????????## ##?????????????? | | ??????????????????????????????#= #??????????????? | | ??????????????????????????????# #??????????????? | | ??????????????????????????????# #??????????????? | | ??????????????????????????????# %#??????????????? | | ??????????????????????????????# #??????????????? | | ??????????????????????????###?# #???####???????? | | ###########################T##;H #?? #???????? | | % !x=!%#? #???????? | | !! %Yg%k#!"" #???????? | | k !%@ g %r "Y #???????? | | #### ###+###########!!% x # "" #???????? | | ???# # # ##!!! g # #??????? | | ???#! !# # !## g%##########?????? | | ???##!!!!## # #u % ??? | | ????####### """ #[! = + ??? | | ??????????# """ #[! # ??? | | ??????????# """ #[! # ##+######+###########???? | | ??????????######## |# # ??? ????????????? | | ?????????????????# # # ! #?? """ ???????????? | | ?????????????????# """ # # ???? """ ???????????? | | ?????????????????# """ # #? ???? "??????????????? | | ?????????????????# """ # #? ???? ??????????????? | | ?????????????????# + #? ??? ???????????????? | | ?????????????????#### ##%#? ???#???????????????? | | ??????????????????###### #?? ????????????????????? | | ??????????????????# # #???????????????????????? | | ??????????????????# # ######## "" ???????????? | | ??????????????????# # [! / "T ???????????? | | ????????########### # ######## "" ???????????? | | ????????# """" # =/ #???????????????????????? | | ????????# ""R" # # #???????????????????????? | | ????????# "" " ######%#############???????????? | | ????????# #???# !^ ?????????? | | ????????# #???# ^^ ?????????? | +----------------------------------------------------+ Best States ------------- Heat Dissipation 59 Energy Generation 23 Energy Capacity 650 Matter Stores 379 Matter Capacity 450 Sight Range 16 Terrain Scan Density 10 Armor Coverage 150 Core Shielding 20 Evasion (%) 62 Targeting Accuracy 5 Target Analysis 5 Recoil Reduction 3 Offensive Hacking 10 Trap Extractor Capacity 4 Item Schematics ----------------- Machine Analyzer | -9/Materials | Scanalyzed Shotgun | -9/Materials | Scanalyzed Robot Schematics ------------------ None Fabricated ------------ Nothing Alien Tech Used ----------------- None Achievements -------------- 5k Club Backstab Crack Shot First Step to Greatness Fist Fight It's Just You Librarian Loot Pinata One Hack Too Far Part-time Mechanic Please Form A Line Power Corrupts Risk Taker Shopping List System Compromised The More The Merrier Uninvited Guest Challenges ------------ None Game ------ Seed CloakMakeshiftExoskeleton Manual? 0 Play Time 02:27:43 Cumulative 4.8 hours Start 2024.04.15 @ 21:09:58 End 2024.04.16 @ 18:07:51 Sessions 3 Manual Loads 0 Difficulty Rogue Special Mode None Game No. 1 Rogue 1 Adventurer 0 Explorer 0 Win Type - Total 0 Types 0/0/0/0/0/0/0/0/0 Lore% 2 Gallery% 4 Achievement% 6 Wizard Run 0 Options --------- Layout 1 ASCII 0 Keyboard 0 Movement Mouse Keybinds 0 Fullscreen 2 Font 32/Smallcaps Map View 50x35 Zoom Use 0% Tactical HUD 1 Map Filters NONE Filters NONE Steam 1 RUN: 717fd367-6c73-4581-a99a-2b681a20ad90